Workbook

Sheet Лист1
A1: Школа | C1: МБОУ "Шурабашская ООШ" Арского муниципального района РТ | F1: Согласовал: | G1: должность | H1: директор
A2: Типовое примерное меню приготавливаемых блюд | G2: фамилия | H2: Ибрагимова Р.Г.
A3: Возрастная категория | E3: 7-11 лет | G3: дата | H3: 11 | I3: 1 | J3: 2026
H4: день | I4: месяц | J4: год
A5: Неделя | B5: День недели | C5: Прием пищи | D5: Раздел меню | E5: Блюда | F5: Вес блюда, г | G5: Белки | H5: Жиры | I5: Углеводы | J5: Калорийность | K5: № рецептуры | L5: Цена
A6: 1 | B6: 1 | C6: Завтрак | D6: салат | E6: Салат из моркови с яблоками | F6: 60 | G6: 0.64 | H6: 3.01 | I6: 5.11 | J6: 50.91 | K6: ТТК | L6: 77.76
D7: гор.блюдо | E7: Котлета из мяса птицы с макаронными изделиями отварными, с маслом сливочным | F7: 230 | G7: 11.45 | H7: 12.46 | I7: 31.32 | J7: 289.95 | K7: ТТК
D8: гор.напиток | E8: Компот из сухофруктов (75С) | F8: 200 | G8: 0.66 | H8: 0.09 | I8: 22.03 | J8: 92.8 | K8: 349
D9: хлеб | E9: Хлеб ржаной | F9: 30 | G9: 1.98 | H9: 0.36 | I9: 11.88 | J9: 59.4
D12: итого | F12: =SUM(F6:F11) -> 520 | G12: =SUM(G6:G11) -> 14.73 | H12: =SUM(H6:H11) -> 15.92 | I12: =SUM(I6:I11) -> 70.34 | J12: =SUM(J6:J11) -> 493.06 | L12: 77.76
A13: =A6 -> 1 | B13: =B6 -> 1 | C13: Завтрак 2 | D13: фрукты
D16: итого | F16: =SUM(F13:F15) -> 0 | G16: =SUM(G13:G15) -> 0 | H16: 0 | I16: 0 | J16: 0 | L16: =SUM(L13:L15) -> 0
A17: =A6 -> 1 | B17: =B6 -> 1 | C17: Обед | D17: закуска
D18: 1 блюдо
D19: 2 блюдо
D20: гарнир
D21: напиток
D22: хлеб бел.
D23: хлеб черн.
D26: итого | F26: =SUM(F17:F25) -> 0 | G26: =SUM(G17:G25) -> 0 | H26: 0 | I26: 0 | J26: 0 | L26: =SUM(L17:L25) -> 0
A27: =A6 -> 1 | B27: =B6 -> 1 | C27: Полдник | D27: булочное
D28: напиток
D31: итого | F31: =SUM(F27:F30) -> 0 | G31: =SUM(G27:G30) -> 0 | H31: 0 | I31: 0 | J31: 0 | L31: =SUM(L27:L30) -> 0
A32: =A6 -> 1 | B32: =B6 -> 1 | C32: Ужин | D32: гор.блюдо
D33: гарнир
D34: напиток
D35: хлеб
D38: итого | F38: =SUM(F32:F37) -> 0 | G38: =SUM(G32:G37) -> 0 | H38: 0 | I38: 0 | J38: 0 | L38: =SUM(L32:L37) -> 0
A39: =A6 -> 1 | B39: =B6 -> 1 | C39: Ужин 2 | D39: кисломол.
D40: булочное
D41: напиток
D42: фрукты
D45: итого | F45: =SUM(F39:F44) -> 0 | G45: =SUM(G39:G44) -> 0 | H45: 0 | I45: 0 | J45: 0 | L45: =SUM(L39:L44) -> 0
A46: =A6 -> 1 | B46: =B6 -> 1 | C46: Итого за день: | F46: =F12+F16+F26+F31+F38+F45 -> 520 | G46: =G12+G16+G26+G31+G38+G45 -> 14.73 | H46: 15.92 | I46: 70.34 | J46: 493.06 | L46: =L12+L16+L26+L31+L38+L45 -> 77.76
A47: 1 | B47: 2 | C47: Завтрак | D47: фрукты | E47: Плоды и ягоды свежие(яблоки) | F47: 100 | G47: 0.4 | H47: 0.4 | I47: 9.8 | J47: 47 | L47: 77.76
D48: гор.блюдо | E48: Сырники из творога с кашей молочной "Дружба" с маслом сливочным | F48: 215 | G48: 10.55 | H48: 11.85 | I48: 39.4 | J48: 324.45 | K48: ТТК
D49: гор.напиток | E49: Кофейный напиток с молоком | F49: 200 | G49: 3.20 | H49: 2.7 | I49: 6 | J49: 60.7 | K49: 379
D50: хлеб | E50: Хлеб ржаной | F50: 30 | G50: 1.98 | H50: 0.36 | I50: 11.88 | J50: 59.4
D54: итого | F54: =SUM(F47:F53) -> 545 | G54: =SUM(G47:G53) -> 16.13 | H54: =SUM(H47:H53) -> 15.31 | I54: =SUM(I47:I53) -> 67.08 | J54: =SUM(J47:J53) -> 491.55 | L54: =SUM(L47:L53) -> 77.76
A55: =A47 -> 1 | B55: =B47 -> 2 | C55: Завтрак 2 | D55: фрукты
D58: итого | F58: =SUM(F55:F57) -> 0 | G58: =SUM(G55:G57) -> 0 | H58: =SUM(H55:H57) -> 0 | I58: =SUM(I55:I57) -> 0 | J58: =SUM(J55:J57) -> 0 | L58: =SUM(L55:L57) -> 0
A59: =A47 -> 1 | B59: =B47 -> 2 | C59: Обед | D59: закуска
D60: 1 блюдо
D61: 2 блюдо
D62: гарнир
D63: напиток
D64: хлеб бел.
D65: хлеб черн.
D68: итого | F68: =SUM(F59:F67) -> 0 | G68: =SUM(G59:G67) -> 0 | H68: =SUM(H59:H67) -> 0 | I68: =SUM(I59:I67) -> 0 | J68: =SUM(J59:J67) -> 0 | L68: =SUM(L59:L67) -> 0
A69: =A47 -> 1 | B69: =B47 -> 2 | C69: Полдник | D69: булочное
D70: напиток
D73: итого | F73: =SUM(F69:F72) -> 0 | G73: =SUM(G69:G72) -> 0 | H73: =SUM(H69:H72) -> 0 | I73: =SUM(I69:I72) -> 0 | J73: =SUM(J69:J72) -> 0 | L73: =SUM(L69:L72) -> 0
A74: =A47 -> 1 | B74: =B47 -> 2 | C74: Ужин | D74: гор.блюдо
D75: гарнир
D76: напиток
D77: хлеб
D80: итого | F80: =SUM(F74:F79) -> 0 | G80: =SUM(G74:G79) -> 0 | H80: =SUM(H74:H79) -> 0 | I80: =SUM(I74:I79) -> 0 | J80: =SUM(J74:J79) -> 0 | L80: =SUM(L74:L79) -> 0
A81: =A47 -> 1 | B81: =B47 -> 2 | C81: Ужин 2 | D81: кисломол.
D82: булочное
D83: напиток
D84: фрукты
D87: итого | F87: =SUM(F81:F86) -> 0 | G87: =SUM(G81:G86) -> 0 | H87: =SUM(H81:H86) -> 0 | I87: =SUM(I81:I86) -> 0 | J87: =SUM(J81:J86) -> 0 | L87: =SUM(L81:L86) -> 0
A88: =A47 -> 1 | B88: =B47 -> 2 | C88: Итого за день: | F88: =F54+F58+F68+F73+F80+F87 -> 545 | G88: =G54+G58+G68+G73+G80+G87 -> 16.13 | H88: =H54+H58+H68+H73+H80+H87 -> 15.31 | I88: =I54+I58+I68+I73+I80+I87 -> 67.08 | J88: =J54+J58+J68+J73+J80+J87 -> 491.55 | L88: =L54+L58+L68+L73+L80+L87 -> 77.76
A89: 1 | B89: 3 | C89: Завтрак | E89: Сыр порционно | F89: 10 | G89: 2.63 | H89: 2.66 | I89: 0.00 | J89: 34.33 | K89: 15 | L89: 77.76
D90: мясн.блюдо | E90: Гуляш из говядины | F90: 100 | G90: 10.39 | H90: 14.79 | I90: 10.30 | J90: 221 | K90: 260
D91: гор.блюдо | E91: Каша гречневая рассыпчатая | F91: 150 | G91: 3.77 | H91: 2.29 | I91: 39.72 | J91: 214 | K91: 171
D92: гор.напиток | E92: Чай с сахаром, с лимоном | F92: 200 | G92: 0.11 | H92: 0.02 | I92: 10.15 | J92: 41.32 | K92: 377
D93: хлеб | E93: Хлеб ржаной | F93: 50 | G93: 3.3 | H93: 0.6 | I93: 19.80 | J93: 99
D96: итого | F96: 510 | G96: =SUM(G89:G95) -> 20.2 | H96: =SUM(H89:H95) -> 20.36 | I96: =SUM(I89:I95) -> 79.97 | J96: =SUM(J89:J95) -> 609.65 | L96: =SUM(L89:L95) -> 77.76
A97: =A89 -> 1 | B97: =B89 -> 3 | C97: Завтрак 2 | D97: фрукты
D100: итого | F100: =SUM(F97:F99) -> 0 | G100: =SUM(G97:G99) -> 0 | H100: =SUM(H97:H99) -> 0 | I100: =SUM(I97:I99) -> 0 | J100: =SUM(J97:J99) -> 0 | L100: =SUM(L97:L99) -> 0
A101: =A89 -> 1 | B101: =B89 -> 3 | C101: Обед | D101: закуска
D102: 1 блюдо
D103: 2 блюдо
D104: гарнир
D105: напиток
D106: хлеб бел.
D107: хлеб черн.
D110: итого | F110: =SUM(F101:F109) -> 0 | G110: =SUM(G101:G109) -> 0 | H110: =SUM(H101:H109) -> 0 | I110: =SUM(I101:I109) -> 0 | J110: =SUM(J101:J109) -> 0 | L110: =SUM(L101:L109) -> 0
A111: =A89 -> 1 | B111: =B89 -> 3 | C111: Полдник | D111: булочное
D112: напиток
D115: итого | F115: =SUM(F111:F114) -> 0 | G115: =SUM(G111:G114) -> 0 | H115: =SUM(H111:H114) -> 0 | I115: =SUM(I111:I114) -> 0 | J115: =SUM(J111:J114) -> 0 | L115: =SUM(L111:L114) -> 0
A116: =A89 -> 1 | B116: =B89 -> 3 | C116: Ужин | D116: гор.блюдо
D117: гарнир
D118: напиток
D119: хлеб
D122: итого | F122: =SUM(F116:F121) -> 0 | G122: =SUM(G116:G121) -> 0 | H122: =SUM(H116:H121) -> 0 | I122: =SUM(I116:I121) -> 0 | J122: =SUM(J116:J121) -> 0 | L122: =SUM(L116:L121) -> 0
A123: =A89 -> 1 | B123: =B89 -> 3 | C123: Ужин 2 | D123: кисломол.
D124: булочное
D125: напиток
D126: фрукты
D129: итого | F129: =SUM(F123:F128) -> 0 | G129: =SUM(G123:G128) -> 0 | H129: =SUM(H123:H128) -> 0 | I129: =SUM(I123:I128) -> 0 | J129: =SUM(J123:J128) -> 0 | L129: =SUM(L123:L128) -> 0
A130: =A89 -> 1 | B130: =B89 -> 3 | C130: Итого за день: | F130: =F96+F100+F110+F115+F122+F129 -> 510 | G130: =G96+G100+G110+G115+G122+G129 -> 20.2 | H130: =H96+H100+H110+H115+H122+H129 -> 20.36 | I130: =I96+I100+I110+I115+I122+I129 -> 79.97 | J130: =J96+J100+J110+J115+J122+J129 -> 609.65 | L130: =L96+L100+L110+L115+L122+L129 -> 77.76
A131: 1 | B131: 4 | C131: Завтрак | D131: салат | E131: Свекла отварная дольками | F131: 60 | G131: 1.08 | H131: 0.06 | I131: 5.88 | J131: 28.8 | K131: ТТК | L131: 77.76
D132: мясн.блюдо | E132: Птица запеченная | F132: 100 | G132: 10.42 | H132: 12.43 | I132: 8.65 | J132: 192 | K132: ТТК
D133: гор.блюдо | E133: Пюре картофельное с маслом сливочным | F133: 153 | G133: 3.08 | H133: 6.25 | I133: 20.47 | J133: 150.45 | K133: 312
D134: гор.напиток | E134: Компот из сухофруктов (75С) | F134: 200 | G134: 0.66 | H134: 0.09 | I134: 22.03 | J134: 92.8 | K134: 349
D135: хлеб | E135: Хлеб пшеничный | F135: 30 | G135: 2.28 | H135: 0.24 | I135: 14.76 | J135: 70.5
D136: хлеб | E136: Хлеб ржаной | F136: 40 | G136: 2.64 | H136: 0.48 | I136: 15.84 | J136: 79.2
D138: итого | F138: =SUM(F131:F137) -> 583 | G138: =SUM(G131:G137) -> 20.16 | H138: =SUM(H131:H137) -> 19.55 | I138: =SUM(I131:I137) -> 87.63 | J138: =SUM(J131:J137) -> 613.75 | L138: =SUM(L131:L137) -> 77.76
A139: =A131 -> 1 | B139: =B131 -> 4 | C139: Завтрак 2 | D139: фрукты
D142: итого | F142: =SUM(F139:F141) -> 0 | G142: =SUM(G139:G141) -> 0 | H142: =SUM(H139:H141) -> 0 | I142: =SUM(I139:I141) -> 0 | J142: =SUM(J139:J141) -> 0 | L142: =SUM(L139:L141) -> 0
A143: =A131 -> 1 | B143: =B131 -> 4 | C143: Обед | D143: закуска
D144: 1 блюдо
D145: 2 блюдо
D146: гарнир
D147: напиток
D148: хлеб бел.
D149: хлеб черн.
D152: итого | F152: =SUM(F143:F151) -> 0 | G152: =SUM(G143:G151) -> 0 | H152: =SUM(H143:H151) -> 0 | I152: =SUM(I143:I151) -> 0 | J152: =SUM(J143:J151) -> 0 | L152: =SUM(L143:L151) -> 0
A153: =A131 -> 1 | B153: =B131 -> 4 | C153: Полдник | D153: булочное
D154: напиток
D157: итого | F157: =SUM(F153:F156) -> 0 | G157: =SUM(G153:G156) -> 0 | H157: =SUM(H153:H156) -> 0 | I157: =SUM(I153:I156) -> 0 | J157: =SUM(J153:J156) -> 0 | L157: =SUM(L153:L156) -> 0
A158: =A131 -> 1 | B158: =B131 -> 4 | C158: Ужин | D158: гор.блюдо
D159: гарнир
D160: напиток
D161: хлеб
D164: итого | F164: =SUM(F158:F163) -> 0 | G164: =SUM(G158:G163) -> 0 | H164: =SUM(H158:H163) -> 0 | I164: =SUM(I158:I163) -> 0 | J164: =SUM(J158:J163) -> 0 | L164: =SUM(L158:L163) -> 0
A165: =A131 -> 1 | B165: =B131 -> 4 | C165: Ужин 2 | D165: кисломол.
D166: булочное
D167: напиток
D168: фрукты
D171: итого | F171: =SUM(F165:F170) -> 0 | G171: =SUM(G165:G170) -> 0 | H171: =SUM(H165:H170) -> 0 | I171: =SUM(I165:I170) -> 0 | J171: =SUM(J165:J170) -> 0 | L171: =SUM(L165:L170) -> 0
A172: =A131 -> 1 | B172: =B131 -> 4 | C172: Итого за день: | F172: =F138+F142+F152+F157+F164+F171 -> 583 | G172: =G138+G142+G152+G157+G164+G171 -> 20.16 | H172: =H138+H142+H152+H157+H164+H171 -> 19.55 | I172: =I138+I142+I152+I157+I164+I171 -> 87.63 | J172: =J138+J142+J152+J157+J164+J171 -> 613.75 | L172: =L138+L142+L152+L157+L164+L171 -> 77.76
A173: 1 | B173: 5 | C173: Завтрак | E173: Сыр порционно | F173: 15 | G173: 3.95 | H173: 3.99 | I173: 0 | J173: 51.5 | K173: 15 | L173: 77.76
D174: мясн.блюдо | E174: Тефтели мясные в сметанно-томатном соусе | F174: 100 | G174: 7.08 | H174: 11.94 | I174: 8.36 | J174: 124 | K174: 279.331
D175: гор.блюдо | E175: Макаронные изделия отварные с маслом сливочным | F175: 185 | G175: 5.1 | H175: 3.62 | I175: 31.96 | J175: 176.10 | K175: 203
D176: гор.напиток | E176: Напиток из свежих фруктов(75С) | F176: 200 | G176: 0.34 | H176: 0.17 | I176: 21.46 | J176: 103.50 | K176: ТТК
D177: хлеб | E177: Хлеб пшеничный | F177: 45 | G177: 3.42 | H177: 0.36 | I177: 22.14 | J177: 105.75
D180: итого | F180: 545 | G180: 19.89 | H180: =SUM(H173:H179) -> 20.08 | I180: =SUM(I173:I179) -> 83.92 | J180: =SUM(J173:J179) -> 560.85 | L180: =SUM(L173:L179) -> 77.76
A181: =A173 -> 1 | B181: =B173 -> 5 | C181: Завтрак 2 | D181: фрукты
D184: итого | F184: =SUM(F181:F183) -> 0 | G184: =SUM(G181:G183) -> 0 | H184: =SUM(H181:H183) -> 0 | I184: =SUM(I181:I183) -> 0 | J184: =SUM(J181:J183) -> 0 | L184: =SUM(L181:L183) -> 0
A185: =A173 -> 1 | B185: =B173 -> 5 | C185: Обед | D185: закуска
D186: 1 блюдо
D187: 2 блюдо
D188: гарнир
D189: напиток
D190: хлеб бел.
D191: хлеб черн.
D194: итого | F194: =SUM(F185:F193) -> 0 | G194: =SUM(G185:G193) -> 0 | H194: =SUM(H185:H193) -> 0 | I194: =SUM(I185:I193) -> 0 | J194: =SUM(J185:J193) -> 0 | L194: =SUM(L185:L193) -> 0
A195: =A173 -> 1 | B195: =B173 -> 5 | C195: Полдник | D195: булочное
D196: напиток
D199: итого | F199: =SUM(F195:F198) -> 0 | G199: =SUM(G195:G198) -> 0 | H199: =SUM(H195:H198) -> 0 | I199: =SUM(I195:I198) -> 0 | J199: =SUM(J195:J198) -> 0 | L199: =SUM(L195:L198) -> 0
A200: =A173 -> 1 | B200: =B173 -> 5 | C200: Ужин | D200: гор.блюдо
D201: гарнир
D202: напиток
D203: хлеб
D206: итого | F206: =SUM(F200:F205) -> 0 | G206: =SUM(G200:G205) -> 0 | H206: =SUM(H200:H205) -> 0 | I206: =SUM(I200:I205) -> 0 | J206: =SUM(J200:J205) -> 0 | L206: =SUM(L200:L205) -> 0
A207: =A173 -> 1 | B207: =B173 -> 5 | C207: Ужин 2 | D207: кисломол.
D208: булочное
D209: напиток
D210: фрукты
D213: итого | F213: =SUM(F207:F212) -> 0 | G213: =SUM(G207:G212) -> 0 | H213: =SUM(H207:H212) -> 0 | I213: =SUM(I207:I212) -> 0 | J213: =SUM(J207:J212) -> 0 | L213: =SUM(L207:L212) -> 0
A214: =A173 -> 1 | B214: =B173 -> 5 | C214: Итого за день: | F214: =F180+F184+F194+F199+F206+F213 -> 545 | G214: =G180+G184+G194+G199+G206+G213 -> 19.89 | H214: =H180+H184+H194+H199+H206+H213 -> 20.08 | I214: =I180+I184+I194+I199+I206+I213 -> 83.92 | J214: =J180+J184+J194+J199+J206+J213 -> 560.85 | L214: =L180+L184+L194+L199+L206+L213 -> 77.76
A215: 1 | B215: 6 | C215: Завтрак | D215: салат | E215: Салат из свежей капусты с морковью | F215: 80 | G215: 1.05 | H215: 2.6 | I215: 5.17 | J215: 48.32 | K215: 47 | L215: 77.76
D216: гор.блюдо | E216: Биточки рыбные с рисом отварным рассыпчатыйм, с маслом сливочным | F216: 228 | G216: 12.93 | H216: 12.41 | I216: 40.12 | J216: 304.3 | K216: ТТК
D217: гор.напиток | E217: Чай с сахаром, с лимоном | F217: 200 | G217: 0.11 | H217: 0.02 | I217: 10.15 | J217: 41.32 | K217: 377
D218: хлеб | E218: Хлеб ржаной | F218: 30 | G218: 1.98 | H218: 0.36 | I218: 11.88 | J218: 59.4
D222: итого | F222: =SUM(F215:F221) -> 538 | G222: =SUM(G215:G221) -> 16.07 | H222: =SUM(H215:H221) -> 15.39 | I222: =SUM(I215:I221) -> 67.32 | J222: =SUM(J215:J221) -> 453.34 | L222: =SUM(L215:L221) -> 77.76
A223: =A215 -> 1 | B223: =B215 -> 6 | C223: Завтрак 2 | D223: фрукты
D226: итого | F226: =SUM(F223:F225) -> 0 | G226: =SUM(G223:G225) -> 0 | H226: =SUM(H223:H225) -> 0 | I226: =SUM(I223:I225) -> 0 | J226: =SUM(J223:J225) -> 0 | L226: =SUM(L223:L225) -> 0
A227: =A215 -> 1 | B227: =B215 -> 6 | C227: Обед | D227: закуска
D228: 1 блюдо
D229: 2 блюдо
D230: гарнир
D231: напиток
D232: хлеб
D233: хлеб
D236: итого | F236: =SUM(F227:F235) -> 0 | G236: =SUM(G227:G235) -> 0 | H236: =SUM(H227:H235) -> 0 | I236: =SUM(I227:I235) -> 0 | J236: =SUM(J227:J235) -> 0 | L236: =SUM(L227:L235) -> 0
A237: =A215 -> 1 | B237: =B215 -> 6 | C237: Полдник | D237: булочное
D238: напиток
D241: итого | F241: =SUM(F237:F240) -> 0 | G241: =SUM(G237:G240) -> 0 | H241: =SUM(H237:H240) -> 0 | I241: =SUM(I237:I240) -> 0 | J241: =SUM(J237:J240) -> 0 | L241: =SUM(L237:L240) -> 0
A242: =A215 -> 1 | B242: =B215 -> 6 | C242: Ужин | D242: гор.блюдо
D243: гарнир
D244: напиток
D245: хлеб
D248: итого | F248: =SUM(F242:F247) -> 0 | G248: =SUM(G242:G247) -> 0 | H248: =SUM(H242:H247) -> 0 | I248: =SUM(I242:I247) -> 0 | J248: =SUM(J242:J247) -> 0 | L248: =SUM(L242:L247) -> 0
A249: =A215 -> 1 | B249: =B215 -> 6 | C249: Ужин 2 | D249: кисломол.
D250: булочное
D251: напиток
D252: фрукты
D255: итого | F255: =SUM(F249:F254) -> 0 | G255: =SUM(G249:G254) -> 0 | H255: =SUM(H249:H254) -> 0 | I255: =SUM(I249:I254) -> 0 | J255: =SUM(J249:J254) -> 0 | L255: =SUM(L249:L254) -> 0
A256: =A215 -> 1 | B256: =B215 -> 6 | C256: Итого за день: | F256: =F222+F226+F236+F241+F248+F255 -> 538 | G256: =G222+G226+G236+G241+G248+G255 -> 16.07 | H256: =H222+H226+H236+H241+H248+H255 -> 15.39 | I256: =I222+I226+I236+I241+I248+I255 -> 67.32 | J256: =J222+J226+J236+J241+J248+J255 -> 453.34 | L256: =L222+L226+L236+L241+L248+L255 -> 77.76
A257: 1 | B257: 7 | C257: Завтрак | D257: гор.блюдо
D258: гор.напиток
D259: хлеб
D260: хлеб
D264: итого | F264: =SUM(F257:F263) -> 0 | G264: =SUM(G257:G263) -> 0 | H264: =SUM(H257:H263) -> 0 | I264: =SUM(I257:I263) -> 0 | J264: =SUM(J257:J263) -> 0 | L264: 0
A265: 1 | B265: =B257 -> 7 | C265: Завтрак 2 | D265: фрукты
D268: итого | F268: =SUM(F265:F267) -> 0 | G268: =SUM(G265:G267) -> 0 | H268: =SUM(H265:H267) -> 0 | I268: =SUM(I265:I267) -> 0 | J268: =SUM(J265:J267) -> 0 | L268: =SUM(L265:L267) -> 0
A269: =A257 -> 1 | B269: =B257 -> 7 | C269: Обед | D269: закуска
D270: 1 блюдо
D271: 2 блюдо
D272: гарнир
D273: напиток
D274: хлеб
D275: хлеб
D278: итого | F278: =SUM(F269:F277) -> 0 | G278: =SUM(G269:G277) -> 0 | H278: =SUM(H269:H277) -> 0 | I278: =SUM(I269:I277) -> 0 | J278: =SUM(J269:J277) -> 0 | L278: =SUM(L269:L277) -> 0
A279: =A257 -> 1 | B279: =B257 -> 7 | C279: Полдник | D279: булочное
D280: напиток
... 218 more rows
